{"text_format":"1","workbook":"xlsx","n_sheets":3,"sheets":["Лист1","Тома","data"],"not_rendered":{"charts":0,"images":0,"macros":1,"external_links":0,"defined_names":5,"comments":0,"pivot_tables":0},"unopened":[],"bounds":{"document_bytes":16777216,"sheet_cells":100000,"rows_first":2000,"rows_last":500,"rows_between":2000,"halvings":0,"cell_chars":16384,"cell_head_chars":4096},"cells_cut":0,"cells_raw":0,"read":"whole","date_system":"1900"}

{"sheet":"Лист1","index":0,"n_rows":66,"n_cols":12,"rows_kept":66,"cut":false,"hidden":false,"merged":[[0,0,0,9],[0,10,0,11]]}
["Оформление замечания",null,null,null,null,null,null,null,null,null,"klimenkopv"]
["№ замечания по п/п","Содержание","Тип замечания","Номер","Дата","Тип документа","Организация","Автор замечания","Нормативная дата","Кол-во томов, которые необходимо откорректировать","Учетная запись","Дата внесения записи"]
[1,null,null,null,null,null,null,null,{"$f":"WORKDAY(E3,5)","v":"1900-01-06"}]
[null,null,null,null,null,null,null,null,"1900-01-06"]
[null,null,null,null,null,null,null,null,"1900-01-06"]
[null,null,null,null,null,null,null,null,"1900-01-06"]
[null,null,null,null,null,null,null,null,"1900-01-06"]
[null,null,null,null,null,null,null,null,"1900-01-06"]
[null,null,null,null,null,null,null,null,"1900-01-06"]
[null,null,null,null,null,null,null,null,"1900-01-06"]
[null,null,null,null,null,null,null,null,"1900-01-06"]
[null,null,null,null,null,null,null,null,"1900-01-06"]
[null,null,null,null,null,null,null,null,"1900-01-06"]
[null,null,null,null,null,null,null,null,"1900-01-06"]
[null,null,null,null,null,null,null,null,"1900-01-06"]
[null,null,null,null,null,null,null,null,"1900-01-06"]
[null,null,null,null,null,null,null,null,"1900-01-06"]
[null,null,null,null,null,null,null,null,"1900-01-06"]
[null,null,null,null,null,null,null,null,"1900-01-06"]
[null,null,null,null,null,null,null,null,"1900-01-06"]
[null,null,null,null,null,null,null,null,"1900-01-06"]
[null,null,null,null,null,null,null,null,"1900-01-06"]
[null,null,null,null,null,null,null,null,"1900-01-06"]
[null,null,null,null,null,null,null,null,"1900-01-06"]
[null,null,null,null,null,null,null,null,"1900-01-06"]
[null,null,null,null,null,null,null,null,"1900-01-06"]
[null,null,null,null,null,null,null,null,"1900-01-06"]
[null,null,null,null,null,null,null,null,"1900-01-06"]
[null,null,null,null,null,null,null,null,"1900-01-06"]
[null,null,null,null,null,null,null,null,"1900-01-06"]
[null,null,null,null,null,null,null,null,"1900-01-06"]
[null,null,null,null,null,null,null,null,"1900-01-06"]
[null,null,null,null,null,null,null,null,"1900-01-06"]
[null,null,null,null,null,null,null,null,"1900-01-06"]
[null,null,null,null,null,null,null,null,"1900-01-06"]
[null,null,null,null,null,null,null,null,"1900-01-06"]
[null,null,null,null,null,null,null,null,"1900-01-06"]
[null,null,null,null,null,null,null,null,"1900-01-06"]
[null,null,null,null,null,null,null,null,"1900-01-06"]
[null,null,null,null,null,null,null,null,{"$f":"WORKDAY(E40,5)","v":"1900-01-06"}]
[null,null,null,null,null,null,null,null,"1900-01-06"]
[null,null,null,null,null,null,null,null,"1900-01-06"]
[null,null,null,null,null,null,null,null,"1900-01-06"]
[null,null,null,null,null,null,null,null,"1900-01-06"]
[null,null,null,null,null,null,null,null,"1900-01-06"]
[null,null,null,null,null,null,null,null,"1900-01-06"]
[null,null,null,null,null,null,null,null,"1900-01-06"]
[null,null,null,null,null,null,null,null,"1900-01-06"]
[null,null,null,null,null,null,null,null,"1900-01-06"]
[null,null,null,null,null,null,null,null,"1900-01-06"]
[null,null,null,null,null,null,null,null,"1900-01-06"]
[null,null,null,null,null,null,null,null,"1900-01-06"]
[null,null,null,null,null,null,null,null,"1900-01-06"]
[null,null,null,null,null,null,null,null,"1900-01-06"]
[null,null,null,null,null,null,null,null,"1900-01-06"]
[null,null,null,null,null,null,null,null,"1900-01-06"]
[null,null,null,null,null,null,null,null,"1900-01-06"]
[null,null,null,null,null,null,null,null,"1900-01-06"]
[null,null,null,null,null,null,null,null,"1900-01-06"]
[null,null,null,null,null,null,null,null,"1900-01-06"]
[null,null,null,null,null,null,null,null,"1900-01-06"]
[null,null,null,null,null,null,null,null,"1900-01-06"]
[null,null,null,null,null,null,null,null,"1900-01-06"]
[null,null,null,null,null,null,null,null,{"$f":"WORKDAY(E64,5)","v":"1900-01-06"}]
[null,null,null,null,null,null,null,null,{"$f":"WORKDAY(E65,5)","v":"1900-01-06"}]
[null,null,null,null,null,null,null,null,{"$f":"WORKDAY(E66,5)","v":"1900-01-06"}]

{"sheet":"Тома","index":1,"n_rows":41,"n_cols":5,"rows_kept":41,"cut":false,"hidden":false,"merged":[]}
["№","Шифр тома","Наименование тома",1]
[1,"3896-101-01","Ситуационный и генеральный планы и транспорт."]
[2,"3896-101-02","Подъездная дорога."]
[3,"3896-101-03","Подъездная дорога.",null,{"$f":"IFERROR(INDEX(B$2:B$624,MATCH(J3,C$2:C$624,0)),\"\")","v":""}]
[4,"3896-101-04","Подъездная дорога. Спецификация оборудования, изделий и материалов"]
[5,"3896-101-05","Подъездная дорога. Спецификация оборудования, изделий и материалов"]
[6,"3896-101-06","Открытая часть подстанции. Конструктивно-строительные решения"]
[7,"3896-101-07","Открытая часть подстанции. Конструктивно-строительные решения"]
[8,"3896-101-08","Наружное ограждение. Конструктивно-строительные решения."]
[9,"3896-101-09","Наружное ограждение. Конструктивно-строительные решения."]
[10,"3896-101-10","Наружное ограждение. Конструктивно-строительные решения. Спецификация оборудования."]
[11,"3896-101-11","Наружное ограждение. Конструктивно-строительные решения. Спецификация оборудования."]
[12,"3896-087-01","Ситуационный и генеральный планы и транспорт."]
[13,"3896-087-02","Подъездная дорога."]
[14,"3896-087-03","Подъездная дорога."]
[15,"3896-087-04","Подъездная дорога. Спецификация оборудования, изделий и материалов"]
[16,"3896-087-05","Подъездная дорога. Спецификация оборудования, изделий и материалов"]
[17,"3896-087-06","Открытая часть подстанции. Конструктивно-строительные решения"]
[18,"3896-087-07","Открытая часть подстанции. Конструктивно-строительные решения"]
[19,"3896-087-08","Наружное ограждение. Конструктивно-строительные решения."]
[20,"3896-087-09","Наружное ограждение. Конструктивно-строительные решения."]
[21,"3896-087-10","Наружное ограждение. Конструктивно-строительные решения. Спецификация оборудования."]
[22,"3896-087-11","Наружное ограждение. Конструктивно-строительные решения. Спецификация оборудования."]
[23,"3896-087-12","Наружное ограждение. Конструктивно-строительные решения. Спецификация оборудования."]
[24,"3896-040-01","Ситуационный и генеральный планы и транспорт."]
[25,"3896-040-02","Подъездная дорога."]
[26,"3896-040-03","Подъездная дорога."]
[27,"3896-040-04","Подъездная дорога. Спецификация оборудования, изделий и материалов"]
[28,"3896-040-05","Подъездная дорога. Спецификация оборудования, изделий и материалов"]
[29,"3896-040-06","Открытая часть подстанции. Конструктивно-строительные решения"]
[30,"3896-040-07","Открытая часть подстанции. Конструктивно-строительные решения"]
[31,"3896-040-08","Наружное ограждение. Конструктивно-строительные решения."]
[32,"3896-040-09","Наружное ограждение. Конструктивно-строительные решения."]
[33,"3896-040-10","Наружное ограждение. Конструктивно-строительные решения. Спецификация оборудования."]
[34,"3896-040-11","Наружное ограждение. Конструктивно-строительные решения. Спецификация оборудования."]
[35,"3896-040-12","Наружное ограждение. Конструктивно-строительные решения. Спецификация оборудования."]
[36,"3896-040-13","Здание контрольно-пропускного пункта"]
[37,"3896-040-14","Здание контрольно-пропускного пункта"]
[38,"3896-040-15","Здание контрольно-пропускного пункта"]
[39,"3896-040-16","Здание контрольно-пропускного пункта. Спецификация оборудования, изделий и материалов"]
[40,"3896-040-17","Конструктивно-строительные решения "]

{"sheet":"data","index":2,"n_rows":4,"n_cols":3,"rows_kept":4,"cut":false,"hidden":false,"merged":[]}
["Тип замечания","Организация","Тип документа"]
["Официально","орг1","Письмо"]
["Не официально","орг2","Протокол"]
["Внутрение","орг3"]